bitfinex/quotes_SOLUSD_20251125
["timestamp","ask_amount","ask_price","bid_price","bid_amount"]
[1764062639981,28.34107197,135.29,135.25,8.09359294]
[1764062639982,0.28432314,135.28,135.24,8.08405774]
[1764062640167,3.67635553,135.27,135.25,3.28]
[1764062640576,2.35437945,135.27,135.25,3.28]
[1764062640773,3.03437945,135.27,135.25,3.28]
[1764062641379,0.96432314,135.28,135.25,10.67359364]
[1764062641569,0.28432314,135.28,135.25,8.08359364]
[1764062641765,18.66324345,135.27,135.26,3.28]
[1764062642579,19.34324345,135.27,135.26,3.28]
[1764062642785,16.308864,135.28,135.26,11.36316871]
[1764062643000,16.308864,135.29,135.27,0.69]
[1764062643215,18.66324345,135.29,135.27,0.69]
[1764062643375,16.308864,135.27,135.26,10.67316871]
[1764062643577,0.73833431,135.29,135.26,13.02754816]
[1764062643787,2.35437945,135.3,135.26,7.39316871]
[1764062643994,2.35437945,135.28,135.27,3.28]
[1764062644298,3.09271376,135.28,135.27,3.28]
[1764062644991,16.59318714,135.27,135.24,7.39409274]
[1764062645193,2.35437945,135.26,135.25,3.28]
[1764062645394,16.308864,135.27,135.25,3.97]
[1764062645582,16.308864,135.28,135.26,0.69]
[1764062647099,16.308864,135.28,135.26,8.0826743]
[1764062647903,3.09271376,135.27,135.24,8.08426205]
[1764062648073,3.09271376,135.27,135.25,3.28]
[1764062649297,3.09271376,135.27,135.25,10.67363362]
[1764062649672,2.35437945,135.27,135.25,11.36363362]
[1764062649894,20.08157776,135.28,135.25,11.36363362]
[1764062650090,17.04719831,135.28,135.26,0.69]
[1764062650290,0.73833431,135.3,135.27,2.35437945]
[1764062650599,0.2,135.32,135.28,3.28]
[1764062650773,0.2,135.32,135.31,2.35437945]
[1764062650974,0.2,135.32,135.31,5.63437945]
[1764062651179,0.2,135.32,135.31,13.71481622]
[1764062651593,0.2,135.32,135.3,0.69]
[1764062651783,0.2,135.32,135.31,3.28]
[1764062652186,0.2,135.32,135.31,3.97]
[1764062652600,0.2,135.32,135.31,3.28]
[1764062652802,0.2,135.32,135.31,3.97]
[1764062653305,0.2,135.32,135.31,11.36043677]
[1764062653810,0.2,135.32,135.31,13.71481622]
[1764062654405,0.2,135.32,135.31,11.36043677]
[1764062655083,0.2,135.32,135.31,8.08043677]
[1764062655291,0.2,135.32,135.31,11.36043677]
[1764062659323,0.2,135.32,135.31,3.28]
[1764062659484,0.2,135.32,135.31,10.67043677]
[1764062659688,0.2,135.32,135.31,11.36043677]
[1764062660189,0.2,135.32,135.31,7.39043677]
[1764062660405,0.2,135.32,135.31,10.67043677]
[1764062661597,3.23437945,135.32,135.31,3.28]
[1764062661788,3.97271376,135.32,135.31,3.28]
[1764062662108,4.2570369,135.32,135.31,3.28]
[1764062662300,0.28432314,135.31,135.28,7.39207569]
[1764062662488,0.96432314,135.31,135.29,3.28]
[1764062663089,0.69,135.3,135.29,3.28]
[1764062663512,0.28432314,135.31,135.29,10.67149658]
[1764062663714,2.35437945,135.3,135.29,10.67149658]
[1764062664214,3.04437945,135.3,135.29,3.28]
[1764062664403,3.04437945,135.3,135.27,7.3922805]
[1764062664599,2.35437945,135.28,135.27,7.3922805]
[1764062664805,2.35437945,135.29,135.28,3.28]
[1764062665194,2.35437945,135.29,135.27,7.3922805]
[1764062665418,2.35437945,135.29,135.28,3.28]
[1764062665617,2.35437945,135.29,135.27,7.3922805]
[1764062665919,2.35437945,135.29,135.28,3.28]
[1764062666417,0.69,135.3,135.28,3.28]
[1764062666613,2.35437945,135.29,135.28,3.98]
[1764062666916,2.35437945,135.29,135.28,10.67207569]
[1764062667412,2.35437945,135.29,135.27,7.39239493]
[1764062667620,2.35437945,135.29,135.28,3.28]
[1764062668809,2.35437945,135.29,135.27,8.09239493]
[1764062669008,2.35437945,135.29,135.28,3.28]
[1764062669809,2.35437945,135.29,135.28,10.67207569]
[1764062670626,2.35437945,135.3,135.28,7.39207569]
[1764062670827,2.35437945,135.3,135.28,10.67207569]
[1764062671324,18.66324345,135.31,135.28,11.37207569]
[1764062671914,18.66324345,135.31,135.28,11.16939648]
[1764062672726,19.35324345,135.31,135.28,11.16939648]
[1764062673803,2.35437945,135.3,135.28,11.16939648]
[1764062675824,18.66324345,135.31,135.29,0.7]
[1764062676029,18.66324345,135.31,135.3,3.28]
[1764062677639,19.35324345,135.31,135.3,3.28]
[1764062677832,20.09157776,135.31,135.3,3.28]
[1764062678637,19.40157776,135.31,135.3,3.28]
[1764062678834,0.28432314,135.3,135.25,0.7]
[1764062679037,0.28432314,135.3,135.26,3.28]
[1764062679038,0.97432314,135.3,135.26,3.28]
[1764062679223,16.308864,135.28,135.26,3.28]
[1764062679627,16.998864,135.28,135.26,3.28]
[1764062680219,2.35437945,135.27,135.26,10.67313473]
[1764062681437,2.35437945,135.27,135.26,3.28]
[1764062681627,2.35437945,135.27,135.25,7.39356041]
[1764062681822,18.66324345,135.27,135.26,3.28]
[1764062682240,18.66324345,135.27,135.26,10.67316871]
[1764062682432,18.66324345,135.27,135.26,3.28]
[1764062683941,19.35324345,135.27,135.26,3.28]
[1764062684110,18.66324345,135.27,135.26,10.67316871]
[1764062684310,16.308864,135.28,135.26,29.15609049]
[1764062684523,1.62833431,135.32,135.27,0.7]
[1764062684736,16.308864,135.3,135.28,3.28]
[1764062684940,18.66324345,135.3,135.28,3.28]
[1764062685139,18.66324345,135.3,135.28,3.98]
[1764062686035,2.35437945,135.31,135.28,3.98]
[1764062686236,2.35437945,135.31,135.3,7.390983]
[1764062686426,18.66324345,135.31,135.3,7.390983]
[1764062686833,18.66324345,135.31,135.29,7.39128662]
[1764062688147,18.66324345,135.31,135.3,3.28]
[1764062688651,18.66324345,135.31,135.3,10.670983]
[1764062689748,19.35324345,135.31,135.3,3.28]
[1764062690256,19.49540502,135.31,135.3,3.28]
[1764062691134,0.28432314,135.29,135.22,8.09535571]
[1764062691340,2.35437945,135.25,135.23,3.98]
[1764062692439,2.35437945,135.25,135.24,7.39426205]
[1764062694038,3.15654102,135.25,135.24,3.28]
[1764062695960,16.308864,135.22,135.18,18.49322592]
[1764062696139,2.35437945,135.19,135.17,7.39809129]
[1764062696339,2.35437945,135.19,135.18,10.67754401]
[1764062697240,2.35437945,135.19,135.18,3.28]
[1764062697449,2.35437945,135.19,135.18,10.67754401]
[1764062698138,16.308864,135.2,135.18,11.35754401]
[1764062698340,18.94756659,135.23,135.2,7.3964497]
[1764062698554,16.308864,135.22,135.21,3.28]
[1764062699664,2.35437945,135.23,135.21,3.28]
[1764062699869,18.66324345,135.24,135.21,3.96]
[1764062700178,2.35437945,135.23,135.21,3.96]
[1764062700479,0.88049588,135.26,135.22,8.07535571]
[1764062700778,19.98794398,135.26,135.22,26.563745]
[1764062700944,19.98794398,135.26,135.23,0.68]
[1764062701140,3.67907998,135.26,135.24,3.28]
[1764062701340,3.67907998,135.28,135.24,3.28]
[1764062701544,3.67907998,135.29,135.25,0.68]
[1764062701838,3.67907998,135.27,135.26,3.28]
[1764062702468,3.67907998,135.27,135.26,7.39316871]
[1764062702764,4.62340312,135.27,135.26,7.39316871]
[1764062702965,4.62340312,135.27,135.26,10.67316871]
[1764062703261,4.70173743,135.27,135.26,10.67316871]
[1764062703471,4.70173743,135.27,135.26,3.28]
[1764062703677,5.36173743,135.27,135.26,3.28]
[1764062704049,5.36173743,135.27,135.26,10.67316871]
[1764062704250,5.36173743,135.27,135.26,3.28]
[1764062705288,16.308864,135.28,135.26,10.67316871]
[1764062705494,19.98794398,135.28,135.26,10.67316871]
[1764062706053,20.64794398,135.28,135.26,10.67316871]
[1764062706283,3.67907998,135.27,135.26,10.67316871]
[1764062709963,4.41741429,135.27,135.26,10.67316871]
[1764062710281,3.67907998,135.27,135.26,10.67316871]
[1764062710850,4.33907998,135.27,135.26,10.67316871]
[1764062711052,3.67907998,135.27,135.26,10.67316871]
[1764062711268,4.33907998,135.27,135.26,10.67316871]
[1764062712876,19.98794398,135.27,135.26,10.67316871]
[1764062713983,20.64794398,135.27,135.26,10.67316871]
[1764062714159,16.308864,135.25,135.22,7.39535571]
[1764062714362,3.67907998,135.24,135.23,3.28]
[1764062714563,20.64794398,135.25,135.23,3.28]
[1764062714862,19.98794398,135.24,135.23,3.28]
[1764062715776,0.28432314,135.23,135.2,25.88685091]
[1764062715958,0.94432314,135.23,135.21,3.28]
[1764062716377,0.66,135.22,135.21,10.67587643]
[1764062716979,17.25318714,135.23,135.21,10.67587643]
[1764062717199,4.33907998,135.22,135.21,7.39587643]
[1764062717355,4.33907998,135.22,135.21,10.67587643]
[1764062718194,4.62340312,135.22,135.17,0.68]
[1764062718363,3.67907998,135.18,135.16,0.68]
[1764062718687,3.67907998,135.18,135.17,3.28]
[1764062719086,3.67907998,135.2,135.17,3.96]
[1764062719294,3.67907998,135.2,135.18,0.68]
[1764062719795,3.67907998,135.23,135.18,0.68]
[1764062720080,4.33907998,135.22,135.18,0.68]
[1764062720287,3.67907998,135.22,135.19,25.88948885]
[1764062720500,3.67907998,135.22,135.2,3.28]
[1764062720858,3.67907998,135.22,135.2,3.96]
[1764062721061,3.67907998,135.23,135.21,0.68]
[1764062721272,3.67907998,135.23,135.2,3.96]
[1764062721462,3.67907998,135.23,135.2,3.28]
[1764062721661,3.67907998,135.23,135.21,0.68]
[1764062721964,16.308864,135.23,135.21,0.68]
[1764062722377,3.67907998,135.23,135.22,7.39535571]
[1764062722685,0.66,135.22,135.17,50.0]
[1764062722887,0.66,135.22,135.18,3.28]
[1764062722888,3.67907998,135.2,135.18,3.28]
[1764062723090,0.28432314,135.23,135.18,7.66907998]
[1764062723279,3.67907998,135.22,135.19,0.71]
[1764062724085,0.28432314,135.23,135.19,0.71]
[1764062724385,3.67907998,135.22,135.19,0.71]
[1764062724890,3.67907998,135.22,135.2,7.3964497]
[1764062725076,3.67907998,135.22,135.21,3.28]
[1764062725972,3.67907998,135.22,135.21,3.99]
[1764062726288,3.67907998,135.22,135.21,3.28]
[1764062726986,3.67907998,135.22,135.21,10.67590266]
[1764062727499,0.14216157,135.26,135.21,33.55473931]
[1764062727500,4.41741429,135.26,135.21,33.55473931]
[1764062727683,20.72627829,135.26,135.22,0.71]
[1764062727990,4.41741429,135.26,135.22,0.71]
[1764062729067,4.41741429,135.26,135.23,7.39480884]
[1764062729267,3.67907998,135.25,135.24,3.28]
[1764062729895,4.70173743,135.26,135.24,3.28]
[1764062730577,4.70173743,135.26,135.24,3.99]
[1764062730892,3.96340312,135.26,135.25,3.28]
[1764062731280,4.70173743,135.26,135.25,10.67371534]
[1764062732493,125.42627829,135.27,135.25,10.67371534]
[1764062732695,126.10627829,135.27,135.25,10.67371534]
[1764062732900,3.67907998,135.26,135.25,10.67371534]
[1764062734678,124.68794398,135.27,135.25,10.67371534]
[1764062734883,104.7,135.27,135.26,0.71]
[1764062735280,0.73833431,135.29,135.26,8.10316871]
[1764062735488,0.28432314,135.29,135.27,3.99]
[1764062735788,3.67907998,135.3,135.27,3.99]
[1764062736090,3.67907998,135.3,135.28,0.71]
[1764062736398,3.67907998,135.3,135.29,3.28]
[1764062737108,16.308864,135.3,135.29,3.28]
[1764062737300,19.98794398,135.3,135.29,10.6715293]
[1764062737481,108.86340312,135.32,135.29,29.86035256]
[1764062737681,124.88794398,135.32,135.3,0.71]
[1764062738508,125.62627829,135.32,135.29,29.15035256]
[1764062738707,19.98794398,135.3,135.28,7.39192283]
[1764062738879,3.67907998,135.29,135.28,7.39192283]
[1764062739078,4.35907998,135.29,135.28,10.67192283]
[1764062739516,3.67907998,135.29,135.28,10.67192283]
[1764062739715,0.28432314,135.28,135.26,7.39316871]
[1764062740010,3.67907998,135.27,135.26,7.39316871]
[1764062740312,3.67907998,135.27,135.26,10.67316871]
[1764062740513,20.66794398,135.27,135.26,10.67316871]
[1764062741003,19.98794398,135.27,135.26,10.67316871]
[1764062741681,16.308864,135.26,135.25,7.39347497]
[1764062742001,21.69060143,135.26,135.25,10.67347497]
[1764062742574,21.69060143,135.26,135.25,3.28]
[1764062742978,20.95226712,135.26,135.25,3.28]
[1764062743688,20.95226712,135.26,135.23,25.881272]
[1764062743872,17.27318714,135.26,135.25,3.28]
[1764062744076,20.95226712,135.26,135.25,3.28]
[1764062744300,16.308864,135.26,135.25,3.99]
[1764062744501,3.67907998,135.27,135.25,3.99]
[1764062744797,19.98794398,135.26,135.25,3.99]
[1764062744974,3.67907998,135.27,135.25,3.99]
[1764062745179,4.70173743,135.28,135.26,0.71]
[1764062745689,4.70173743,135.28,135.26,7.39316871]
[1764062745889,3.67907998,135.27,135.26,7.39316871]
[1764062746777,3.67907998,135.27,135.26,8.10316871]
[1764062747077,16.308864,135.28,135.26,26.58609049]
[1764062747278,16.308864,135.28,135.27,0.71]
[1764062747600,19.98794398,135.28,135.27,0.71]
[1764062747812,19.98794398,135.28,135.27,8.10262216]
[1764062748608,20.95226712,135.28,135.27,3.28]
[1764062749793,20.95226712,135.28,135.27,10.67262216]
[1764062749794,20.27226712,135.28,135.27,10.67262216]
[1764062750395,16.59318714,135.28,135.27,10.67262216]
[1764062750597,20.27226712,135.28,135.27,10.67262216]
[1764062753990,0.14216157,135.27,135.25,7.39319006]
[1764062754191,0.28432314,135.25,135.21,0.66]
[1764062754393,3.67907998,135.24,135.22,3.28]
[1764062755329,3.67907998,135.24,135.22,11.33535571]
[1764062755490,3.67907998,135.24,135.22,8.05535571]
[1764062755816,3.67907998,135.24,135.23,3.28]
[1764062757016,0.67,135.25,135.23,3.28]
[1764062757315,3.67907998,135.24,135.23,3.28]
[1764062757807,3.67907998,135.24,135.23,10.67480884]
[1764062759994,3.96340312,135.24,135.19,18.49194602]
[1764062760198,3.67907998,135.22,135.2,8.0964497]
[1764062760389,3.67907998,135.22,135.2,7.3964497]
[1764062760588,3.67907998,135.22,135.21,3.28]
[1764062760986,4.65340312,135.23,135.21,3.28]
[1764062761188,3.96340312,135.23,135.21,3.28]
[1764062761398,3.96340312,135.23,135.21,3.98]
[1764062761596,4.65340312,135.23,135.21,3.28]
[1764062761797,3.96340312,135.23,135.21,3.28]
[1764062762000,4.65340312,135.23,135.21,3.28]
[1764062762213,0.28432314,135.21,135.16,7.39863865]
[1764062762413,3.67907998,135.18,135.16,7.39863865]
[1764062762603,2.35745156,135.18,135.17,3.28]
[1764062762990,3.04745156,135.18,135.17,3.28]
[1764062763214,16.59318714,135.21,135.17,3.98]
[1764062763215,16.308864,135.2,135.17,3.98]
[1764062763586,16.59318714,135.21,135.17,3.28]
[1764062763791,0.28432314,135.23,135.18,3.05745156]
[1764062763993,18.66631556,135.22,135.18,3.05745156]
[1764062764209,18.66631556,135.22,135.19,0.7]
[1764062764413,18.66631556,135.22,135.2,10.6764497]
[1764062764711,3.04745156,135.21,135.2,3.28]
[1764062764887,2.35745156,135.21,135.19,7.39684091]
[1764062765091,2.35745156,135.21,135.2,3.28]
[1764062766217,2.35745156,135.21,135.2,10.6764497]
[1764062767411,16.59318714,135.23,135.2,29.86757396]
[1764062767615,3.09578587,135.22,135.2,29.86757396]
[1764062767914,3.09578587,135.25,135.21,0.7]
[1764062768119,3.09578587,135.26,135.21,3.05745156]
[1764062768412,0.73833431,135.26,135.22,28.24119656]
[1764062768617,107.79578587,135.27,135.23,3.28]
[1764062768918,107.79578587,135.27,135.23,3.98]
[1764062769116,108.48578587,135.27,135.24,0.7]
[1764062769621,2.35745156,135.26,135.24,0.7]
[1764062770322,2.35745156,135.26,135.25,7.39371534]
[1764062770616,3.09578587,135.26,135.25,7.39371534]
[1764062771029,2.35745156,135.26,135.25,7.39371534]
[1764062772425,2.35745156,135.26,135.24,7.39426205]
[1764062772598,2.35745156,135.26,135.24,8.09426205]
[1764062774506,2.35745156,135.26,135.24,7.39426205]
[1764062774905,2.35745156,135.26,135.24,8.09426205]
[1764062775124,2.35745156,135.26,135.24,26.57991718]
[1764062776129,3.04745156,135.25,135.24,7.39426205]
[1764062776316,16.308864,135.24,135.2,7.3964497]
[1764062776514,2.35745156,135.23,135.21,3.28]
[1764062776924,2.35745156,135.23,135.22,7.39535571]
[1764062777936,2.35745156,135.23,135.22,8.09535571]
[1764062778430,18.66631556,135.24,135.22,8.09535571]
[1764062778624,18.66631556,135.24,135.22,7.39535571]
[1764062778825,18.66631556,135.24,135.23,11.37480884]
[1764062779536,18.66631556,135.24,135.23,10.67480884]
[1764062780620,16.308864,135.24,135.23,10.67480884]
[1764062780816,104.7,135.27,135.23,32.21928251]
[1764062781018,104.7,135.27,135.24,3.05745156]
[1764062781224,104.7,135.27,135.25,3.98]
[1764062781626,104.7,135.27,135.26,0.7]
[1764062781833,2.35745156,135.28,135.26,0.7]
[1764062782161,3.18961313,135.3,135.26,0.7]
[1764062782343,3.09578587,135.29,135.26,0.7]
[1764062782930,3.09578587,135.29,135.27,7.39262216]
[1764062783236,3.38010901,135.29,135.28,3.28]
[1764062784040,2.35745156,135.29,135.28,3.98]
[1764062784239,2.35745156,135.3,135.28,3.98]
[1764062784744,3.23794744,135.31,135.29,0.7]
[1764062784921,3.23794744,135.31,135.3,7.390983]
[1764062785117,3.29578587,135.32,135.3,7.390983]
[1764062785441,3.58010901,135.32,135.31,3.28]
[1764062785640,1.22265745,135.32,135.31,3.28]
[1764062785935,3.43794744,135.32,135.31,3.28]
[1764062786335,4.29010901,135.32,135.31,3.28]
[1764062786537,3.58010901,135.32,135.31,3.28]
[1764062787120,3.58010901,135.32,135.31,10.67043677]
[1764062787323,0.2,135.32,135.31,11.37043677]
[1764062787523,0.2,135.33,135.31,13.72788833]
[1764062787827,1e-08,135.36,135.32,53.05745156]
[1764062788149,1e-08,135.36,135.35,2.35745156]
[1764062788440,1e-08,135.36,135.35,5.63745156]
[1764062788638,1e-08,135.36,135.35,6.33745156]
[1764062788832,1e-08,135.36,135.35,3.98]
[1764062789241,1e-08,135.36,135.35,13.72570423]
[1764062789624,1e-08,135.36,135.35,11.36825267]
[1764062794656,1e-08,135.36,135.35,13.72570423]
[1764062796852,1e-08,135.36,135.35,11.36825267]
[1764062797053,1e-08,135.36,135.35,13.72570423]
[1764062798637,1e-08,135.36,135.35,72.67781072]
[1764062801152,1e-08,135.36,135.35,13.72570423]
[1764062802359,1e-08,135.36,135.35,22.67781072]
[1764062802658,1e-08,135.36,135.35,72.67781072]
[1764062803038,1e-08,135.36,135.35,63.8678658]
[1764062803243,1e-08,135.36,135.35,72.67781072]
[1764062805456,1e-08,135.39,135.38,50.0]
[1764062805647,1e-08,135.39,135.38,55.63745156]
[1764062805833,1e-08,135.39,135.38,56.33745156]
[1764062806345,1e-08,135.39,135.38,65.28955805]
[1764062806556,1e-08,135.39,135.38,67.64700961]
[1764062806858,1e-08,135.41,135.4,50.0]
[1764062807030,1e-08,135.41,135.4,55.63745156]
[1764062807231,1e-08,135.41,135.4,63.02297593]
[1764062807434,1e-08,135.41,135.4,63.72297593]
[1764062807860,0.71000001,135.41,135.4,3.28]
[1764062808242,1e-08,135.41,135.4,3.28]
[1764062808436,1e-08,135.41,135.4,6.33745156]
[1764062808835,1e-08,135.41,135.4,3.28]
[1764062809371,1e-08,135.41,135.4,10.66552437]
[1764062809942,1e-08,135.41,135.4,13.02297593]
[1764062812175,1e-08,135.41,135.4,10.66552437]
[1764062813245,1e-08,135.41,135.4,7.38552437]
[1764062813433,0.66000001,135.41,135.4,10.66552437]
[1764062813640,3.01745157,135.41,135.4,10.66552437]
[1764062814362,0.66000001,135.41,135.4,10.66552437]
[1764062815764,0.66000001,135.41,135.39,7.38606987]
[1764062815966,0.66000001,135.41,135.4,3.28]
[1764062817753,0.66000001,135.41,135.4,10.66552437]
[1764062818452,0.66000001,135.41,135.36,18.46850844]
[1764062818658,0.66000001,135.41,135.37,13.02461267]
[1764062818659,3.01745157,135.41,135.37,13.02461267]
[1764062818844,3.01745157,135.41,135.37,32.18251545]
[1764062819167,0.66000001,135.41,135.37,32.18251545]
[1764062819988,1e-08,135.41,135.38,3.04745156]
[1764062820272,3.07745157,135.41,135.39,3.28]
[1764062820466,3.07745157,135.41,135.37,8.07676468]
[1764062820658,3.07745157,135.41,135.38,3.28]
[1764062821250,0.72,135.4,135.38,3.28]
[1764062821870,2.35745156,135.39,135.33,58.07934358]
[1764062822058,2.35745156,135.38,135.33,78.91015655]
[1764062822254,3.07745156,135.38,135.34,3.28]
[1764062822462,2.35745156,135.36,135.33,7.38934358]
[1764062822655,2.35745156,135.35,135.33,7.38934358]
[1764062822857,2.35745156,135.35,135.34,3.28]
[1764062823474,3.07745156,135.35,135.29,50.0]
[1764062823801,16.59318714,135.37,135.3,7.390983]
[1764062823802,2.35745156,135.33,135.3,7.390983]
[1764062823957,2.35745156,135.33,135.3,10.670983]
[1764062824155,0.72,135.32,135.3,10.670983]
[1764062824765,7.38785971,135.36,135.3,11.360983]
[1764062824766,4.39526891,135.34,135.3,11.360983]
[1764062825157,0.72,135.33,135.3,11.360983]
[1764062825668,4.39526891,135.33,135.3,10.670983]
[1764062825874,3.67526891,135.32,135.3,10.670983]
[1764062826196,4.39526891,135.32,135.3,7.390983]
[1764062826365,4.39526891,135.32,135.31,3.28]
[1764062827876,0.72,135.32,135.31,3.28]
[1764062828080,16.308864,135.33,135.31,10.67043677]
[1764062829361,17.028864,135.33,135.31,10.67043677]
[1764062829880,16.308864,135.33,135.31,10.67043677]
[1764062830185,17.028864,135.33,135.31,10.67043677]
[1764062830675,3.95959205,135.34,135.31,10.67043677]
[1764062830892,0.72,135.33,135.31,10.67043677]
[1764062831462,3.95959205,135.34,135.31,10.67043677]
[1764062831664,4.67959205,135.34,135.31,10.67043677]
[1764062832598,3.95959205,135.34,135.31,10.67043677]
[1764062832777,0.72,135.33,135.31,10.67043677]
[1764062833391,3.95959205,135.34,135.31,10.67043677]
[1764062833596,4.67959205,135.34,135.31,10.67043677]
[1764062834095,0.72,135.33,135.31,10.67043677]
[1764062834864,16.308864,135.29,135.24,0.69]
[1764062835070,16.308864,135.31,135.28,3.67526891]
[1764062835400,0.28432314,135.34,135.29,3.28]
[1764062835563,3.67526891,135.33,135.29,3.97]
[1764062835764,4.41360322,135.33,135.3,0.69]
[1764062835961,5.13360322,135.33,135.3,0.69]
[1764062836189,5.13360322,135.33,135.29,10.67099749]
[1764062836373,5.13360322,135.33,135.29,11.36099749]
[1764062836895,4.39526891,135.33,135.29,11.36099749]
[1764062837077,17.33152145,135.34,135.3,0.69]
[1764062837078,20.26845605,135.34,135.3,0.69]
[1764062837593,20.98845605,135.34,135.3,0.69]
[1764062838088,20.98845605,135.34,135.3,8.08065775]
[1764062838260,16.308864,135.33,135.31,0.69]
[1764062838476,5.41792636,135.36,135.32,3.28]
[1764062838679,16.308864,135.35,135.32,6.95526891]
[1764062838879,16.308864,135.35,135.32,7.64526891]
[1764062839081,16.308864,135.35,135.32,3.97]
[1764062839315,16.308864,135.35,135.33,0.69]
[1764062839488,16.308864,135.35,135.32,3.97]
[1764062839993,17.028864,135.35,135.32,3.97]
[1764062840188,17.028864,135.35,135.32,11.35947935]
[1764062840906,20.70413291,135.35,135.32,3.97]
[1764062841210,16.308864,135.35,135.32,11.3597772]
[1764062841506,19.98413291,135.35,135.32,11.3597772]
[1764062841885,19.98413291,135.35,135.32,8.0797772]
[1764062842088,20.70413291,135.35,135.33,3.28]
[1764062843808,5.39792636,135.34,135.29,8.04136469]
[1764062844118,3.67526891,135.33,135.3,3.28]
[1764062844295,3.67526891,135.32,135.3,3.28]
[1764062844609,4.65959205,135.32,135.31,3.28]
[1764062844785,3.95959205,135.32,135.31,3.28]
[1764062844986,0.28432314,135.31,135.24,21.90763526]
[1764062845219,3.67526891,135.28,135.25,3.93]
[1764062845389,3.67526891,135.27,135.25,3.28]
[1764062845590,3.67526891,135.27,135.25,11.32371006]
[1764062845890,3.67526891,135.28,135.25,11.32371006]
[1764062846496,3.67526891,135.27,135.25,11.32371006]
[1764062846696,3.67526891,135.28,135.25,11.32371006]
[1764062846904,3.67526891,135.28,135.25,8.04371006]
[1764062847109,3.67526891,135.28,135.26,3.28]
[1764062847314,3.95959205,135.29,135.26,3.93]
[1764062847492,3.67526891,135.28,135.26,3.28]
[1764062847700,3.67526891,135.27,135.23,8.24479006]
[1764062848012,16.308864,135.28,135.24,7.60526891]
[1764062848184,16.308864,135.32,135.27,3.67526891]
[1764062848389,3.67526891,135.31,135.28,3.28]
[1764062848620,3.81743048,135.3,135.29,3.28]
[1764062848828,3.95959205,135.3,135.29,3.28]
[1764062849001,20.68413291,135.31,135.29,3.28]
[1764062849387,19.98413291,135.31,135.29,10.67143431]
[1764062849610,4.37526891,135.3,135.26,0.65]
[1764062849816,3.67526891,135.29,135.27,3.28]
[1764062850110,4.37526891,135.3,135.27,3.93]
[1764062850500,3.67526891,135.29,135.27,3.28]
[1764062850814,3.67526891,135.29,135.27,3.93]
[1764062851209,3.67526891,135.3,135.27,3.93]
[1764062851596,16.308864,135.31,135.28,8.04207569]
[1764062851796,16.308864,135.31,135.28,61.7173446]
[1764062852005,0.73833431,135.34,135.3,3.67526891]
[1764062852321,19.98413291,135.34,135.31,3.28]
[1764062852523,5.11360322,135.35,135.31,3.93]
[1764062852825,21.42246722,135.35,135.31,3.93]
[1764062854606,3.67526891,135.31,135.28,3.28]
[1764062854808,3.67526891,135.3,135.28,3.28]
[1764062854997,4.37526891,135.3,135.28,3.28]
[1764062855197,17.04719831,135.32,135.29,3.28]
[1764062855405,3.67526891,135.3,135.25,0.65]
[1764062855615,3.67526891,135.29,135.26,3.28]
[1764062855927,3.67526891,135.29,135.26,3.93]
[1764062856093,3.67526891,135.29,135.26,11.32310546]
[1764062857712,3.67526891,135.29,135.26,8.04310546]
[1764062857934,3.67526891,135.29,135.27,3.28]
[1764062858095,19.98413291,135.28,135.25,0.65]
[1764062858417,0.7,135.29,135.26,3.93]
[1764062858418,19.98413291,135.29,135.26,3.93]
[1764062858822,19.98413291,135.29,135.27,0.65]
[1764062858823,16.308864,135.29,135.27,0.65]
[1764062859024,4.41360322,135.31,135.27,4.32526891]
[1764062859390,5.11360322,135.31,135.28,0.65]
[1764062859597,5.11360322,135.31,135.29,3.28]
[1764062860694,4.41360322,135.31,135.29,3.28]
[1764062860932,17.33152145,135.32,135.29,11.32149119]
[1764062861140,21.70679036,135.32,135.29,11.32149119]
[1764062861322,16.308864,135.32,135.3,0.65]
[1764062861514,16.308864,135.31,135.3,0.65]
[1764062861713,16.308864,135.31,135.29,3.93]
[1764062862629,16.308864,135.31,135.29,11.32140359]
[1764062863916,4.41360322,135.33,135.29,10.67140359]
[1764062864143,0.14216157,135.34,135.3,4.32526891]